Cogmind - Beta 17 @@@ ROGUE MODE // 2026.07.25 @ 12:51:28 Player: aperiodic Result: Destroyed by BM-868(R) with Subdweller Laser Performance ------------- Evolutions (0) 0 Regions Visited (2) 400 Robots Destroyed (27) 135 Value Destroyed (719) 719 Prototype IDs (0) 0 Alien Tech Used (0) 0 Bonus (0) 0 TOTAL SCORE: 1254 Bonus ------- None Cogmind --------- Core Integrity 0/250 Matter 240/300 Energy 250/250 System Corruption 0% Temperature Cool (6) Movement Treading (160) Location -10/Subcaves Parts ------- > --- POWER (1) -------- Ion Engine > --- PROPULSION (2) --- Spiked Treads > --- UTILITY (2) ------ Seismic Detector Makeshift Light Armor Plating > --- WEAPON (2) ------- Subdweller Machine Gun Heavy Battle Rifle > --- INVENTORY (5) ---- Wheel Wheel Medium Laser Medium Laser Mining Laser Peak State ------------ > --- POWER ------------ Ion Engine > --- PROPULSION ------- Spiked Treads Wheel > --- UTILITY ---------- Seismic Detector Makeshift Light Armor Plating > --- WEAPON ----------- Subdweller Machine Gun Heavy Battle Rifle > --- INVENTORY -------- Light Treads Wheel Medium Laser Medium Laser Mining Laser [Rating: 15] Favorites ----------- Power Ion Engine Engine Ion Engine Propulsion Wheel Treads Light Treads Wheel Wheel Utility Seismic Detector Device Seismic Detector Storage Large Storage Unit Protection Scrap Shield Weapon Assault Rifle Energy Gun Medium Laser Ballistic Gun Assault Rifle Special Weapon Mining Laser Build | -11 -10 -10 ------- Run | Yrd Mat Sub Slots Evolved . | . . . Power . | . . . Propulsion . | . . . Utility . | . . . Weapon . | . . . Parts Attached 24 | 8 8 8 Power 2 | 1 . 1 Engine 2 | 1 . 1 Core . | . . . Reactor . | . . . Propulsion 10 | 2 6 2 Treads 5 | . 4 1 Leg . | . . . Wheel 5 | 2 2 1 Hover . | . . . Flight . | . . . Utility 5 | 2 1 2 Device 1 | 1 . . Storage 2 | 1 1 . Processor . | . . . Hackware . | . . . Protection 2 | . . 2 Artifact . | . . . Weapon 7 | 3 1 3 Energy Gun 1 | . . 1 Energy Cannon . | . . . Ballistic Gun 5 | 3 . 2 Ballistic Cannon . | . . . Launcher . | . . . Special Weapon 1 | . 1 . Impact Weapon . | . . . Slashing Weapon . | . . . Piercing Weapon . | . . . Special Melee Weapon . | . . . Unidentified Prototypes . | . . . Parts Lost 5 | . 1 4 Power 1 | . . 1 Propulsion 1 | . . 1 Utility 1 | . . 1 Weapon 2 | . 1 1 Highest Loss Streak 1 | . 1 1 To Critical Strikes . | . . . Average Backups 7 | 4 11 5 Power . | . 1 . Propulsion 3 | 2 5 2 Utility . | . . . Weapon 3 | 1 3 2 Tool/Special . | . . . Unused Backups 7 | . . 7 Power . | . . . Propulsion 1 | . . 1 Utility 2 | . . 2 Weapon 4 | . . 4 Tool/Special . | . . . Average Slot Usage (%) 92 | . 100 85 Engine 12 | . 14 10 Treads 14 | . 12 16 Wheel 13 | . 15 11 Device 8 | . 14 4 Storage 6 | . 14 1 Protection 7 | . . 12 Energy Gun 5 | . . 10 Ballistic Gun 20 | . 27 15 Special Weapon 1 | . . 1 Peak Build Rating 15 | 7 8 15 Average Rating 9 | 5 7 10 On Entrance 5 | . 7 8 Avg Prop Armor Cover (%) . | . . . Naked Turns . | . . . Heaviest Build 32 | 15 30 32 Greatest Support 40 | 20 40 40 Greatest Overweight (x) 1 | . 1 1 Average Overweight (x) . | . . . Largest Inventory Capacity 15 | 8 15 15 Average Capacity 9 | 7 14 5 Most Carried 15 | 8 15 15 Average Carried 7 | 4 11 5 Final Capacity 15 | 8 15 5 Final Carried 15 | 8 15 5 Class Distribution -------------------- 98% | Mutant Dominant Class ---------------- Mutant | -10/Materials Mutant | -10/Subcaves Resources | -11 -10 -10 ----------- Run | Yrd Mat Sub Matter Collected 1229 | 334 519 376 Remotely . | . . . Salvage Created 939 | 120 519 300 Parts 50 | 9 20 21 Haulers Intercepted 2 | . 2 . Recyclers Shooed . | . . . Parts Field Recycled . | . . . Retrieved Matter . | . . . Parts Self-Destructed 5 | . . 5 Prevented . | . . . Parts Restored . | . . . Kills | -11 -10 -10 ------- Run | Yrd Mat Sub Combat Hostiles Destroyed 19 | . 9 10 Guns 19 | . 9 10 Classes Destroyed 7 | 2 3 2 Tunneler 4 | 3 1 . Hauler 2 | . 2 . Recycler 1 | 1 . . Operator 1 | . 1 . Swarmer 3 | . . 3 Grunt 9 | . 9 . Subdweller 7 | . . 7 Best Kill Streak 3 | 3 2 3 Combat Bots Only 3 | . 2 3 Max Kills in Single Turn 2 | 1 1 2 Gunslinging 1 | . . 1 Exploded . | . . . Melee . | . . . Uniques/NPCs Destroyed . | . . . Combat | -11 -10 -10 -------- Run | Yrd Mat Sub Hostile Shots Fired 116 | . 47 69 Missed 30 | . 13 17 Hits 86 | . 34 52 Projectile 86 | . 34 52 Critical Strikes 1 | . . 1 Damage Taken 1435 | . 482 953 Core 262 | . 115 147 Absorbed by Shields . | . . . Regen/Repaired (Parts) 89 | . 89 . Core Remaining (%) 100 | 100 . . Volleys Fired 128 | 9 64 55 Largest 2 | 2 2 2 Hottest 100 | 40 100 100 Shots Fired 240 | 18 124 98 Gun 224 | 18 120 86 Cannon . | . . . Launcher . | . . . Special 16 | . 4 12 Kinetic 202 | 18 120 64 Thermal 38 | . 4 34 Explosive . | . . . Electromagnetic . | . . . Robot Hit Streak 22 | 4 15 22 Robot Miss Streak 3 | 3 3 3 Penetration Max . | . . . Secondary Targets 4 | . 1 3 Max Gunslinging Chain 1 | . 1 1 Shots Hit Robots 164 | 10 86 68 Core Hits 51 | 4 29 18 Critical Kills . | . . . Critical Parts Destroyed 1 | . 1 . Critical Strikes 4 | . 1 3 Burn 3 | . . 3 Destroy 1 | . 1 . Melee Attacks . | . . . Impact . | . . . Slashing . | . . . Piercing . | . . . Sneak Attacks . | . . . Combat Hostiles . | . . . Follow-up Attacks . | . . . Damage Inflicted 2146 | 124 968 1054 Guns 2138 | 124 960 1054 Cannons . | . . . Explosions . | . . . Melee . | . . . Ramming 8 | . 8 . Kinetic 1900 | 124 960 816 Thermal 238 | . . 238 Explosive . | . . . Electromagnetic . | . . . Impact . | . . . Slashing . | . . . Piercing . | . . . Highest Corruption . | . . . Average Corruption . | . . . Corruption Purged . | . . . Corruption Blocked . | . . . Overload Shots . | . . . Overflow Damage . | . . . Projectiles . | . . . Explosions . | . . . Melee . | . . . Knockbacks . | . . . Impact . | . . . Kinetic . | . . . Secondary . | . . . Self-Inflicted Damage . | . . . Shots . | . . . Rammed 1 | . 1 . Targets Rammed 1 | . 1 . Kicked . | . . . Crushed . | . . . Highest Temperature 20 | 6 20 1 Average Temperature 7 | 6 7 1 Received Heat Transfer 384 | . 246 138 Siege Activations . | . . . Martial Activations . | . . . Shielding Activations . | . . . Robots Disrupted . | . . . Combat Hostiles . | . . . Robots Corrupted . | . . . Combat Hostiles . | . . . Parts Fried . | . . . Impact Corruptions . | . . . Robots Melted . | . . . Combat Hostiles . | . . . Parts Melted 1 | . . 1 Heat Transferred 925 | . . 925 Parts Sabotaged . | . . . Parts Stolen . | . . . Parts Stripped . | . . . Power Chain Reactions . | . . . Alert | -11 -10 -10 ------- Run | Yrd Mat Sub Maximum Alert Level . | . . . Low Security (%) 100 | 100 100 . Level 1 . | . . . Level 2 . | . . . Level 3 . | . . . Level 4 . | . . . Level 5 . | . . . High Security . | . . . Max Security . | . . . Peak Influence 84 | 10 84 . Initial . | . . . Average 20 | . 22 . Influence Increases 366 | 20 276 70 Destroy 0b10 Robot/C 240 | . 180 60 Destroy 0b10 Robot/NC 40 | 20 20 . Destroy Leader 64 | . 54 10 Successful Hack 3 | . 3 . Disable Machine 15 | . 15 . Destroy Structure 4 | . 4 . Influence Decreases 354 | 20 252 82 Entered New Map 12 | . . 12 Time Decay 332 | 20 252 60 Lost Part 10 | . . 10 Squads Dispatched 2 | . 2 . Investigation 1 | . 1 . Extermination . | . . . Reinforcement 1 | . 1 . Assault . | . . . Garrison . | . . . Intercept . | . . . Searches Triggered . | . . . Construction Impeded . | . . . Haulers Reinforced . | . . . Active Scanning Responses . | . . . Cargo Convoy Interrupts . | . . . Stealth | -11 -10 -10 --------- Run | Yrd Mat Sub Distress Signals . | . . . Communications Jammed . | . . . Distress Signals . | . . . Times Spotted 31 | . 16 15 Peak Tracking Total 3 | . 3 3 Tactical Retreats 1 | . . 1 Traps | -11 -10 -10 ------- Run | Yrd Mat Sub Traps Triggered 2 | . 2 . Indirectly . | . . . Trap Hack Attempts . | . . . Triggered . | . . . Disarmed . | . . . Reprogrammed . | . . . Reused . | . . . Traps Extracted . | . . . Installed . | . . . Triggered . | . . . Machines | -11 -10 -10 ---------- Run | Yrd Mat Sub Machines Disabled 1 | . 1 . Max in Single Turn 1 | . 1 . Machines Repaired . | . . . Machines Dismantled . | . . . Machines Sabotaged . | . . . Overloaded Fab Kills . | . . . Hacking | -11 -10 -10 --------- Run | Yrd Mat Sub Machines Accessed 2 | . 2 . Terminals 1 | . 1 . Fabricators . | . . . Repair Stations 1 | . 1 . Recycling Units . | . . . Scanalyzers . | . . . Garrison Access . | . . . Total Hacks 4 | . 4 . Successful 2 | . 2 . Failed 2 | . 2 . Catastrophic 1 | . 1 . Database Lockouts . | . . . Manual 1 | . 1 . Terminals 1 | . 1 . Fabricators . | . . . Repair Stations 3 | . 3 . Recycling Units . | . . . Scanalyzers . | . . . Garrison Access . | . . . Terminal Hacks . | . . . Fabricator Hacks . | . . . Repair Station Hacks 2 | . 2 . Scan Component 1 | . 1 . Repair 1 | . 1 . Recycling Unit Hacks . | . . . Scanalyzer . | . . . Garrison Access Hacks . | . . . Unauthorized Hacks . | . . . Terminals . | . . . Fabricators . | . . . Repair Stations . | . . . Recycling Units . | . . . Scanalyzers . | . . . Garrison Access . | . . . Data Cores Recovered 1 | . 1 . Used . | . . . Hacking Detections 2 | . 2 . Full Trace Events . | . . . Feedback Events . | . . . Feedback Blocked . | . . . Robot Schematics Acquired . | . . . Robots Built . | . . . Authchips . | . . . Time . | . . . Total Robot Build Rating . | . . . Part Schematics Acquired . | . . . Parts Built . | . . . Authchips . | . . . Time . | . . . Total Part Build Rating . | . . . Part Studies Acquired . | . . . Parts Repaired 1 | . 1 . Time 26 | . 26 . Parts Recycled . | . . . Recycled Matter . | . . . Retrieved Matter . | . . . Retrieved Components . | . . . Parts Scanalyzed . | . . . Part Schematics Acquired . | . . . Parts Damaged . | . . . Bothacking | -11 -10 -10 ------------ Run | Yrd Mat Sub Used RIF Installer . | . . . Robots Hacked . | . . . Non-combat . | . . . Combat . | . . . Robot Hacks Applied . | . . . Relay Couplers Released . | . . . Fabnet Peak Effective % . | . . . Robots Rewired . | . . . Allies Hacked . | . . . Hacks Repelled . | . . . Allies | -11 -10 -10 -------- Run | Yrd Mat Sub Total Allies . | . . . Largest Group . | . . . Highest-Rated Group . | . . . Highest-Rated Ally . | . . . Total Orders . | . . . Ally Attacks . | . . . Total Damage . | . . . Kills . | . . . Allies Corrupted . | . . . Allies Melted . | . . . Intel | -11 -10 -10 ------- Run | Yrd Mat Sub Active Infowar (turns) 1743 | 13 1244 486 Seismic 1743 | 13 1244 486 Robot Analysis Total . | . . . Derelict Logs Recovered 2 | . . 2 Drone Launches . | . . . Drone Recoveries . | . . . Exploration | -11 -10 -10 ------------- Run | Yrd Mat Sub Turns Passed 2954 | 112 1244 1598 Spaces Moved 1854 | 77 742 1035 Core 1 | 1 . . Treads 496 | . 123 373 Legs . | . . . Wheels 1357 | 76 619 662 Hover . | . . . Flight . | . . . Fastest Speed 50 | 50 80 80 Average Speed 107 | 79 104 112 Slowest Speed 160 | 80 160 160 Overloaded Moves . | . . . Propulsion Burnouts . | . . . Robots Hopped . | . . . Potential Cave-ins . | . . . Cave-ins Triggered . | . . . Exploration Rate (%) 47 | 5 96 41 Regions Visited 2 Branch Regions 1 Pre-discovered Areas 1 | . . 1 Known Exits Taken . | . . . Unknown Exits Taken 2 | 1 1 . Scrap Searched 5 | . . 5 Spaces Dug 3 | . 3 . Terrain Destroyed 4 | . 3 1 Melee . | . . . Projectile 4 | . 3 1 AOE . | . . . Terrain Rammed . | . . . Walls Destroyed . | . . . Machines Disabled . | . . . Actions | -11 -10 -10 --------- Run | Yrd Mat Sub Total 2524 | 105 1076 1343 Wait 445 | 4 228 213 Move 1852 | 76 741 1035 Hop . | . . . Pick Up 21 | 8 9 4 Fast Attach 11 | 7 . 4 Attach 3 | . 1 2 Detach . | . . . Swap 50 | 1 29 20 Drop 10 | . 3 7 Fire 128 | 9 64 55 Melee . | . . . Ram . | . . . Kick . | . . . Crush 1 | . 1 . Escape Stasis . | . . . Rewire . | . . . Trap . | . . . Miscellaneous 3 | . . 3 Route ------- -11/Scrapyard -10/Materials (discovered 5 exits: [*Mat x3] / [*Min] / [*Sub]) -10/Subcaves (discovered 2 exits: [*Mat x2]) History --------- Turn | Location | Event 25 | -11/Scrapyard | Discovered new exit (range 16) 113 | -11/Scrapyard | Entered Materials 244 | -10/Materials | Discovered new exit (range 8) 609 | -10/Materials | Build established: Mutant 660 | -10/Materials | Discovered new exit (range 9) 845 | -10/Materials | Repaired Assault Rifle 953 | -10/Materials | Discovered new exit (range 16) 1180 | -10/Materials | Discovered new exit (range 10) 1344 | -10/Materials | Discovered new exit (range 9) 1357 | -10/Materials | Entered Subcaves 1379 | -10/Subcaves | Core integrity fell below 50% 1593 | -10/Subcaves | Shifting Twisted Machinery released Riot Gun 1609 | -10/Subcaves | Learned location of Storage (-7) 1629 | -10/Subcaves | Discovered new exit (range 14) 1659 | -10/Subcaves | Discovered new exit (range 5) 1698 | -10/Subcaves | Core integrity fell below 20% 1938 | -10/Subcaves | Shifting Twisted Machinery released Hvy. Battle Rifle 2955 | -10/Subcaves | Destroyed by BM-868(R) with Subdweller Laser Last Messages --------------- 02606_ Acquired Ion Engine. 02619_ Acquired Seismic Detector. 02622_ Acquired 11 matter. 02635_ Acquired 39 matter. 02686_ Acquired 33 matter. 02712_ S-10 Pest destroyed. 02712_ Switching to secondary target: S-10 Pest. 02712_ S-10 Pest destroyed. 02718_ Flight Unit fries itself beyond repair. 02718_ S-10 Pest destroyed. 02722_ Flight Unit fries itself beyond repair. 02746_ Acquired 8 matter. 02750_ Acquired 11 matter. 02750_ Acquired 16 matter. 02838_ 9L-5VN(u) deconstructs Twisted Machinery. 02867_ Acquired derelict log, extracted data. Data stored: Storage entrances (x1). 02944_ Lgt. Treads destroyed. 02948_ 4X-8VD(R) destroyed. Map ----- +----------------------------------------------------+ | ???????????##### ## #??# ## | | ????????????$"##### ##? ##? | | ????????????# "### #? #?? | | ????????????#" ## ##? #?? | | ????????????#" ###" ## #?## ?? | | ????????????## #"" ##### #?####?? | | ?????????????# #???# ##??????? | | ?????????????# #???########???????? | | ?????????????# #" #??????????????????? | | ?????????????## ## ##?????????????????? | | ?????????????" # ####??????????????? | | ????????????#$ ## ##?????????????? | | ????????????#$ "## #?????????????? | | ????????????" "### ##?????????????? | | ??????????? "" ### ##?????????????? | | ??????????#####??## #?????????????? | | ??????????????????# #?????????????? | | ??????????????##### ###?????????????? | | ??????????????# ## #???????????????? | | ??????????????# ######??????????? | | ??????????????# ## # #??????????? | | ??????????????## ### ##?????????? | | ???????????????# ##?# #### #?????????? | | ???????????????#!&#??# ##?# #?????????? | | ???????????????#R%##?# #??# ##?????????? | | ???????????????#[&@#?# #??# ##?????????? | | ???????????????# #?# #??# #?????????? | | ???????????????# #?######## #?????????? | | ??????????????# #??### ##?????????? | | ??????????????## ##?## #??????????? | | ???????????????## #?## ##?????????? | | ????????????????###?# ##????????? | | ????????????????????## #???###??? | | ?????????????????????## #???#"##?? | | ??????????????????????#### ##### "### | | ??????????????????????#??#### "" | | ???????????????# ### ##??## "" | | ???????????????# ### | | ???????????????# ## | | ??????????????? ## ## | | ??????????????? #### | | ???????????????# ## ### | | ????????????????# ??# ### | | ????????????????? ????# #?# | | ?????????????????# ## #?# | | ??????????????????? ### ### | | ???????????????????##### ##### ?# | | ???????????????????????##????## ?# # | | ??????????????????????????????? ?#### ## | | ??????????????????????????????? ????## ##? | +----------------------------------------------------+ Best States ------------- Heat Dissipation 25 Energy Generation 10 Energy Capacity 250 Matter Stores 300 Matter Capacity 300 Sight Range 16 Terrain Scan Density 10 Armor Coverage 800 Evasion (%) 44 Recoil Reduction 2 Item Schematics ----------------- None Robot Schematics ------------------ None Fabricated ------------ Nothing Repaired ---------- Assault Rifle | 11% | -10/Materials Studied --------- None Alien Tech Used ----------------- None Achievements -------------- None Challenges ------------ None Game ------ Seed SwordAnalysisClaw Manual? 0 Play Time 00:26:59 Cumulative 761.7 hours Start 2026.07.25 @ 12:28:11 End 2026.07.25 @ 12:51:28 Sessions 1 Manual Loads 0 Difficulty Rogue Special Mode None Game No. 267 Rogue 263 Adventurer 4 Explorer 0 Win Type - Total 21 Types 9/2/6/0/0/0/2/2/0/0 Lore% 88 Gallery% 76 Achievement% 60 Wizard Run 0 Options --------- Layout 1 ASCII 0 Keyboard 0 Movement Arrows Keybinds 0 Fullscreen 1 Font 40/SmallcapsGlow Map View 50x40 Zoom Use 0% Tactical HUD 1 Map Filters NONE Filters NONE Steam 1 RUN: 64c7cdda-a2d1-4bb6-a015-ea911247b84e